Cogmind - Beta 11 X9 @@@ ROGUE MODE // 2022.01.20 @ 22:21:55 Player: LU-1G1 Result: Destroyed by D-53 Grenadier with Mini Grenade Launcher Performance ------------- Evolutions (0) 0 Regions Visited (2) 400 Robots Destroyed (18) 90 Value Destroyed (270) 270 Prototype IDs (0) 0 Alien Tech Used (0) 0 Bonus (0) 0 TOTAL SCORE: 760 Bonus ------- None Cogmind --------- Core Integrity 0/250 Matter 181/300 Energy 249/265 System Corruption 0% Temperature Cool (0) Movement Treading (240) Ox1 Location -10/Mines Parts ------- > --- POWER (1) -------- Improved Ion Engine > --- PROPULSION (2) --- Light Treads Light Treads > --- UTILITY (2) ------ High-capacity Storage Unit > --- WEAPON (2) ------- Assault Rifle > --- INVENTORY (20) --- Ion Engine Ion Engine Light Treads Wheel Wheel Compact Wheel Small Storage Unit High-capacity Storage Unit Signal Interpreter Light Armor Plating Grenade Launcher Rocket Launcher Peak State ------------ > --- POWER ------------ Improved Ion Engine > --- PROPULSION ------- Light Treads Light Treads > --- UTILITY ---------- High-capacity Storage Unit Structural Scanner > --- WEAPON ----------- Assault Rifle Assault Rifle > --- INVENTORY -------- Ion Engine Ion Engine Light Treads Light Treads Light Treads Wheel Wheel Compact Wheel Small Storage Unit High-capacity Storage Unit Signal Interpreter Light Armor Plating Assault Rifle Assault Rifle Grenade Launcher [Rating: 9] Favorites ----------- Power Ion Engine Engine Ion Engine Propulsion Light Treads Treads Light Treads Utility Structural Scanner Device Structural Scanner Storage High-capacity Storage Unit Weapon Assault Rifle Ballistic Gun Assault Rifle Launcher Grenade Launcher Build | -11 -10 -10 ------- Run | Scr Mat Min Slots Evolved . | . . . Power . | . . . Propulsion . | . . . Utility . | . . . Weapon . | . . . Parts Attached 20 | 5 9 6 Power 3 | 1 1 1 Engine 3 | 1 1 1 Core . | . . . Reactor . | . . . Propulsion 5 | 1 1 3 Treads 5 | 1 1 3 Leg . | . . . Wheel . | . . . Hover . | . . . Flight . | . . . Utility 3 | 1 2 . Device 1 | . 1 . Storage 2 | 1 1 . Processor . | . . . Hackware . | . . . Protection . | . . . Artifact . | . . . Weapon 9 | 2 5 2 Energy Gun . | . . . Energy Cannon . | . . . Ballistic Gun 8 | 2 4 2 Ballistic Cannon . | . . . Launcher 1 | . 1 . Special Weapon . | . . . Impact Weapon . | . . . Slashing Weapon . | . . . Piercing Weapon . | . . . Special Melee Weapon . | . . . Unidentified Prototypes . | . . . Parts Lost 6 | . . 6 Power . | . . . Propulsion 2 | . . 2 Utility 1 | . . 1 Weapon 3 | . . 3 Highest Loss Streak 6 | . . 6 Average Slot Usage (%) 97 | . 96 99 Engine 14 | . 14 14 Treads 27 | . 27 27 Device 12 | . 11 13 Storage 14 | . 14 14 Ballistic Gun 27 | . 27 27 Naked Turns . | . . . Heaviest Build 52 | 12 50 52 Greatest Support 40 | 20 40 40 Greatest Overweight (x) 4 | . 4 1 Average Overweight (x) . | . . 1 Largest Inventory Capacity 20 | 8 20 20 Average Capacity 17 | 7 17 20 Most Carried 16 | 8 13 16 Average Carried 12 | 5 10 15 Final Capacity 20 | 8 20 20 Final Carried 12 | 8 12 12 Class Distribution -------------------- 100% | Mutant Dominant Class ---------------- Mutant | -10/Materials Mutant | -10/Mines Resources | -11 -10 -10 ----------- Run | Scr Mat Min Matter Collected 528 | 265 158 105 Remotely . | . . . Salvage Created 485 | 119 366 . Parts 34 | 11 23 . Haulers Intercepted 1 | . 1 . Recyclers Shooed 1 | . 1 . Parts Field Recycled . | . . . Retrieved Matter . | . . . Parts Self-Destructed . | . . . Prevented . | . . . Kills | -11 -10 -10 ------- Run | Scr Mat Min Combat Hostiles Destroyed 11 | . 11 . Guns 6 | . 6 . AOE 5 | . 5 . Classes Destroyed 6 | 2 4 . Builder 1 | . 1 . Tunneler 3 | 3 . . Hauler 1 | . 1 . Recycler 2 | 1 1 . Swarmer 6 | . 6 . Grunt 5 | . 5 . Best Kill Streak 10 | 3 10 . Combat Bots Only 8 | . 8 . Max Kills in Single Turn 2 | 1 2 . Gunslinging . | . . . Exploded 2 | . 2 . Melee . | . . . Uniques/NPCs Destroyed . | . . . Combat | -11 -10 -10 -------- Run | Scr Mat Min Damage Taken 1102 | . 229 873 Core 274 | . 43 231 Absorbed by Shields . | . . . Core Remaining (%) 100 | 100 . . Volleys Fired 50 | 9 34 7 Largest 2 | 2 2 2 Hottest 40 | 40 40 40 Shots Fired 93 | 15 64 14 Gun 89 | 15 60 14 Cannon . | . . . Launcher 4 | . 4 . Special . | . . . Kinetic 89 | 15 60 14 Thermal . | . . . Explosive 4 | . 4 . Electromagnetic . | . . . Robot Hit Streak 8 | 8 7 2 Robot Miss Streak 2 | 2 2 2 Penetration Max . | . . . Secondary Targets . | . . . Shots Hit Robots 57 | 11 39 7 Core Hits 31 | 7 22 2 Critical Kills . | . . . Critical Parts Destroyed . | . . . Critical Strikes . | . . . Melee Attacks . | . . . Impact . | . . . Slashing . | . . . Piercing . | . . . Sneak Attacks . | . . . Combat Hostiles . | . . . Follow-up Attacks . | . . . Damage Inflicted 966 | 97 782 87 Guns 700 | 97 516 87 Cannons . | . . . Explosions 266 | . 266 . Melee . | . . . Ramming . | . . . Kinetic 700 | 97 516 87 Thermal . | . . . Explosive 266 | . 266 . Electromagnetic . | . . . Impact . | . . . Slashing . | . . . Piercing . | . . . Highest Corruption . | . . . Average Corruption . | . . . Corruption Purged . | . . . Overload Shots . | . . . Overflow Damage . | . . . Projectiles . | . . . Explosions . | . . . Melee . | . . . Knockbacks . | . . . Impact . | . . . Kinetic . | . . . Secondary . | . . . Self-Inflicted Damage . | . . . Shots . | . . . Rammed . | . . . Targets Rammed . | . . . Kicked . | . . . Crushed . | . . . Highest Temperature 20 | . 10 20 Average Temperature 10 | . 7 13 Received Heat Transfer 102 | . 66 36 Siege Activations . | . . . Robots Corrupted . | . . . Combat Hostiles . | . . . Parts Fried . | . . . Impact Corruptions . | . . . Robots Melted . | . . . Combat Hostiles . | . . . Parts Melted . | . . . Heat Transferred . | . . . Parts Sabotaged . | . . . Parts Stolen . | . . . Parts Stripped . | . . . Power Chain Reactions . | . . . Missiles Intercepted . | . . . Alert | -11 -10 -10 ------- Run | Scr Mat Min Peak Influence 334 | 20 334 15 Initial 13 | . 13 . Average 51 | 7 123 8 Maximum Alert Level 1 | . 1 . Low Security (%) 93 | 100 82 100 Level 1 6 | . 17 . Level 2 . | . . . Level 3 . | . . . Level 4 . | . . . Level 5 . | . . . High Security . | . . . Max Security . | . . . Squads Dispatched 2 | . 2 . Investigation 1 | . 1 . Extermination . | . . . Reinforcement 1 | . 1 . Assault . | . . . Garrison . | . . . Intercept . | . . . Construction Impeded . | . . . Haulers Reinforced . | . . . Active Scanning Responses . | . . . Cargo Convoy Interrupts . | . . . Stealth | -11 -10 -10 --------- Run | Scr Mat Min Distress Signals 1 | . 1 . Communications Jammed . | . . . Distress Signals . | . . . Times Spotted 23 | . 19 4 Peak Tracking Total 6 | . 6 3 Tactical Retreats . | . . . Traps | -11 -10 -10 ------- Run | Scr Mat Min Traps Triggered . | . . . Indirectly . | . . . Trap Hack Attempts . | . . . Triggered . | . . . Disarmed . | . . . Reprogrammed . | . . . Reused . | . . . Traps Extracted . | . . . Installed . | . . . Triggered . | . . . Machines | -11 -10 -10 ---------- Run | Scr Mat Min Machines Disabled . | . . . Max in Single Turn . | . . . Machines Sabotaged . | . . . Garrisons Compromised . | . . . Overloaded Fab Kills . | . . . Hacking | -11 -10 -10 --------- Run | Scr Mat Min Machines Accessed 4 | . 4 . Terminals 4 | . 4 . Fabricators . | . . . Repair Stations . | . . . Recycling Units . | . . . Scanalyzers . | . . . Garrison Access . | . . . Total Hacks 14 | . 14 . Successful 5 | . 5 . Failed 9 | . 9 . Catastrophic 2 | . 2 . Database Lockouts . | . . . Manual 13 | . 13 . Terminals 14 | . 14 . Fabricators . | . . . Repair Stations . | . . . Recycling Units . | . . . Scanalyzers . | . . . Garrison Access . | . . . Terminal Hacks 5 | . 5 . Part Schematic 2 | . 2 . Robot Schematic 1 | . 1 . Branch Access Points 1 | . 1 . Unreport Threat 1 | . 1 . Fabricator Hacks . | . . . Repair Station Hacks . | . . . Recycling Unit Hacks . | . . . Scanalyzer . | . . . Garrison Access Hacks . | . . . Unauthorized Hacks . | . . . Terminals . | . . . Fabricators . | . . . Repair Stations . | . . . Recycling Units . | . . . Scanalyzers . | . . . Garrison Access . | . . . Data Cores Recovered . | . . . Used . | . . . Hacking Detections 4 | . 4 . Full Trace Events 2 | . 2 . Feedback Events . | . . . Feedback Blocked . | . . . Robot Schematics Acquired 1 | . 1 . Robots Built . | . . . Authchips . | . . . Time . | . . . Total Robot Build Rating . | . . . Part Schematics Acquired 2 | . 2 . Parts Built . | . . . Authchips . | . . . Time . | . . . Total Part Build Rating . | . . . Parts Repaired . | . . . Time . | . . . Parts Recycled . | . . . Recycled Matter . | . . . Retrieved Matter . | . . . Retrieved Components . | . . . Parts Scanalyzed . | . . . Part Schematics Acquired . | . . . Parts Damaged . | . . . Bothacking | -11 -10 -10 ------------ Run | Scr Mat Min Used RIF Installer . | . . . Robots Hacked . | . . . Non-combat . | . . . Combat . | . . . Robot Hacks Applied . | . . . Relay Couplers Released . | . . . Fabnet Peak Effective % . | . . . Robots Rewired . | . . . Allies Hacked . | . . . Hacks Repelled . | . . . Allies | -11 -10 -10 -------- Run | Scr Mat Min Total Allies 3 | . . 3 Largest Group 3 | . . 3 Highest-Rated Group 40 | . . 40 Highest-Rated Ally 16 | . . 16 Total Orders . | . . . Ally Attacks . | . . . Total Damage . | . . . Kills . | . . . Allies Corrupted . | . . . Allies Melted . | . . . Intel | -11 -10 -10 ------- Run | Scr Mat Min Robot Analysis Total . | . . . Derelict Logs Recovered 1 | . . 1 Drone Launches . | . . . Drone Recoveries . | . . . Exploration | -11 -10 -10 ------------- Run | Scr Mat Min Turns Passed 1100 | 94 418 588 Spaces Moved 415 | 41 143 231 Core 7 | 6 1 . Treads 408 | 35 142 231 Legs . | . . . Wheels . | . . . Hover . | . . . Flight . | . . . Fastest Speed 50 | 50 160 240 Average Speed 219 | 143 209 240 Slowest Speed 250 | 160 250 240 Overloaded Moves . | . . . Propulsion Burnouts . | . . . Robots Hopped . | . . . Cave-ins Triggered . | . . . Exploration Rate (%) 28 | 4 31 50 Regions Visited 2 Branch Regions 1 Pre-discovered Areas 1 | . . 1 Known Exits Taken 1 | . 1 . Unknown Exits Taken 1 | 1 . . Scrap Searched 2 | . . 2 Spaces Dug . | . . . Terrain Destroyed 5 | . 5 . Melee . | . . . Projectile . | . . . AOE 5 | . 5 . Terrain Rammed . | . . . Walls Destroyed . | . . . Machines Disabled . | . . . Actions | -11 -10 -10 --------- Run | Scr Mat Min Total 516 | 62 201 253 Wait 2 | . 2 . Move 413 | 40 142 231 Hop . | . . . Pick Up 20 | 8 7 5 Fast Attach 7 | 5 1 1 Attach 6 | . 2 4 Detach 2 | . 1 1 Swap 7 | . 6 1 Drop 9 | . 6 3 Fire 50 | 9 34 7 Melee . | . . . Ram . | . . . Kick . | . . . Crush . | . . . Escape Stasis . | . . . Rewire . | . . . Trap . | . . . Miscellaneous . | . . . Route ------- -11/Scrapyard -10/Materials -10/Mines (discovered 2 exits: [*Mat] / [*Exi]) History --------- Turn | Location | Event 42 | -11/Scrapyard | Discovered new exit (range 15) 95 | -11/Scrapyard | Entered Materials 314 | -10/Materials | Build established: Mutant 385 | -10/Materials | Destroyed 8 combat bots 403 | -10/Materials | Identified exit to Mines 513 | -10/Materials | Entered Mines 528 | -10/Mines | Learned location of Zion (-7) 593 | -10/Mines | Joined a pair of Derelicts in attacking an 0b10 outpost 709 | -10/Mines | Received a Rocket Launcher from a helpful Derelict 769 | -10/Mines | Discovered new exit (range 5) 781 | -10/Mines | Assisted by bots powering up and referring to "LRC-V3" 868 | -10/Mines | Deemed a non-threat by the Exiles lab entrance 868 | -10/Mines | Discovered new exit (range 6) 1066 | -10/Mines | Assembled infested the area 1083 | -10/Mines | Core integrity fell below 50% 1094 | -10/Mines | Core integrity fell below 20% 1101 | -10/Mines | Destroyed by D-53 Grenadier with Mini Grenade Launcher Last Messages --------------- 00781_ Mercenary 1a: "Hello LRC-V3. What is your command?" 00781_ Trooper 1b: "Hello LRC-V3. What is your command?" 00868_ "No threat detected, you may enter." 00868_ EXIT=FOUND 00991_ K-01 Serf collects debris. 01066_ ALERT: Infestation in the mines, dispatching Demolisher response squad. 01080_ Mercenary 1a destroyed. 01080_ Trooper 1b destroyed. 01080_ Trooper 1a destroyed. 01080_ K-01 Serf destroyed. 01082_ Structural Scanner destroyed. 01083_ R-06 Scavenger destroyed. 01085_ Assault Rifle destroyed. 01087_ Lgt. Treads destroyed. 01088_ as-18796 destroyed. 01089_ The unstable cave ceiling collapses. 01095_ Assault Rifle destroyed. 01096_ Lgt. Treads destroyed. 01099_ The unstable cave ceiling collapses. Map ----- +----------------------------------------------------+ | ### ####??????####### | | ### ########???????####### # | | ## #########???????####### ### ## | | # ## ###???????????### ######### | | ### ##????????????## ######### | | ### ##????????????## ###??????? | | # #### ### ###????????????### #####??????? | | ######## #### ####????????????#### #####???????? | | ######## ###? ###??????????????########?????????? | | ??###### ##?????????????????????######??????????? | | ??## ##?????????????????????????????????????? | | ?### ##?????????????????????????????????????? | | #### ######?????????????????????????????????????? | | ### ######??????????????????????????????????? | | ######??????????????????????????????????? | | ##??????????????????????????????????? | | < ##?????????####?????????????????????? | | ###! ### ##????????######????????????????????? | | ###### ##### ############ ###????????????????????? | | ?##### ##### ########### #####?????????????????? | | ????## ##?## %"### #####?????????????????? | | ????## ##?## ###### ## ## %= ?????????????????? | | ????## ##?## ##### ####????????????????? | | ????## ##### #### ###????????????????? | | ????## ##### ### dd ##????????????????? | | ????## ### @ ##????????????????? | | ????## ## ##????????????????? | | ????## # """ ##????????????????? | | ????## # """ ##????????????????? | | ????## ## """ ## #????????????????? | | ????## ### ##### # #????????????????? | | ????## #### ########## ##????????????????? | | ????## #### ####?????# ?????????????????? | | ????## #### ####????# ????????????????? | | ????## #### ######?# ???????????????? | | ????## ##### ######? ###??????????????? | | ????## ###### #### ###???????????????? | | ????## ##?### #### ####???????????????? | | ????## ##??## ############????????????????? | | ????## ##??### ############?????????????????? | | ????## ##??###### ####??????????????????????????? | | ????## ##???##########???????????????????????????? | | ????## ##??????######????????????????????????????? | | ????## ##????????????????????????????????????????? | | ????## ####??????????????????????????????????????? | | ????## #####?????????????????????????????????????? | | ????## ###?????????????????????????????????????? | | ????#### ##?????????????????????????????????????? | | ????#### ###?????????????????????????????????????? | | ?????## ###?????????????????????????????????????? | +----------------------------------------------------+ Best States ------------- Heat Dissipation 25 Energy Generation 12 Energy Capacity 265 Matter Stores 300 Matter Capacity 300 Sight Range 16 Terrain Scan Density 10 Evasion (%) 40 Recoil Reduction 2 Item Schematics ----------------- Med. Storage Unit | -10/Materials | Hacked Huge Storage Unit | -10/Materials | Hacked Robot Schematics ------------------ O-16 Technician | -10/Materials | Hacked Fabricated ------------ Nothing Alien Tech Used ----------------- None Achievements -------------- None Challenges ------------ None Game ------ Seed TransportMolecularPurifier Manual? 0 Play Time 00:07:47 Cumulative 435.5 hours Start 2022.01.20 @ 22:16:10 End 2022.01.20 @ 22:21:55 Sessions 1 Manual Loads 0 Difficulty Rogue Special Mode None Game No. 422 Rogue 207 Adventurer 112 Explorer 103 Win Type - Total 29 Types 21/0/5/2/0/0/0/1/0 Lore% 85 Gallery% 89 Achievement% 80 Wizard Run 0 Options --------- ASCII 1 Keyboard 1 Movement Vi Keybinds 1 Fullscreen 1 Font 18/SmallcapsGlow Map View 76x50 Tactical HUD 1 Map Filters NONE Filters NONE Steam 1 RUN: f4d8a21b-a57a-4ab7-bc02-c0254e46be06